fUST/lending_fUST_20240725
["ID","MTS","AMOUNT","RATE_DAILY","PERIOD"]
[333105876,1721870949072,-248.85342551,0.00011991,2]
[333105877,1721870949093,-748.69799232,0.00011991,2]
[333105878,1721870949118,-154.72922386,0.00011991,2]
[333105879,1721870949143,-162.91507642,0.00011991,2]
[333105880,1721870949303,257.84,0.00010959,2]
[333105881,1721870959795,214.86,0.00010959,2]
[333105883,1721870964565,200.0,0.0001,2]
[333105884,1721870964677,400.0,0.0001137,2]
[333105885,1721870970326,179.05,0.00010959,2]
[333105886,1721870971759,632.88081684,9.893e-05,2]
[333105887,1721870980873,228.15306868,0.00010959,2]
[333106357,1721871038838,-287.73569219,9.9e-05,2]
[333106359,1721871038847,-213.02425157,9.999e-05,2]
[333106361,1721871038859,-244.08972248,9.999e-05,2]
[333106363,1721871038868,-200.0,0.0001,2]
[333106365,1721871038878,-667.13693132,0.00010959,2]
[333106367,1721871038887,-400.0,0.0001137,2]
[333106369,1721871038897,-175.45353333,0.00011991,2]
[333106371,1721871038907,-154.79216296,0.00011991,2]
[333106373,1721871038916,-154.79564442,0.00011991,2]
[333106375,1721871038926,-600.0,0.00013147,2]
[333106377,1721871038935,-200.0,0.00013425,2]
[333106379,1721871038944,-367.8976457,0.000136,2]
[333106381,1721871038954,-153.9093691,0.000136,2]
[333106383,1721871038964,-40214.89925114,0.00013688,2]
[333106385,1721871038978,-30423.85198366,0.00013688,2]
[333106387,1721871038987,-10091.2501764,0.0001369,2]
[333106389,1721871038996,-501.03058879,0.00013698,2]
[333106391,1721871039005,-500.0,0.00013698,2]
[333106393,1721871039014,-500.0,0.00013698,2]
[333106395,1721871039023,-500.0,0.00013698,2]
[333106397,1721871039033,-500.0,0.00013698,2]
[333106399,1721871039043,-307.34,0.00013698,2]
[333106402,1721871039053,-500.0,0.00013698,2]
[333106405,1721871039062,-500.0,0.00013698,2]
[333106408,1721871039071,-500.0,0.00013698,2]
[333106411,1721871039081,-500.0,0.00013698,2]
[333106413,1721871039090,-500.0,0.00013698,2]
[333106415,1721871039099,-500.0,0.00013698,2]
[333106417,1721871039109,-500.0,0.00013698,2]
[333106419,1721871039118,-500.0,0.00013698,2]
[333106421,1721871039130,-500.0,0.00013698,2]
[333106423,1721871039141,-500.0,0.00013698,2]
[333106425,1721871039151,-500.0,0.00013698,2]
[333106427,1721871039160,-500.0,0.00013698,2]
[333106430,1721871039170,-964.1,0.00013698,2]
[333106432,1721871039180,-482.01036955,0.00013698,2]
[333106434,1721871039190,-560.94292177,0.00013698,2]
[333106436,1721871039200,-500.0,0.00013698,2]
[333106438,1721871039210,-450.1862276,0.00013698,2]
[333106440,1721871039222,-542.70981901,0.00013698,2]
[333106442,1721871039235,-500.0,0.00013698,2]
[333106444,1721871039244,-500.0,0.00013698,2]
[333106446,1721871039254,-500.0,0.00013698,2]
[333106448,1721871039264,-500.0,0.00013698,2]
[333106450,1721871039274,-500.0,0.00013698,2]
[333106452,1721871039283,-500.0,0.00013698,2]
[333106454,1721871039292,-500.0,0.00013698,2]
[333106456,1721871039302,-639.71,0.00013698,2]
[333106458,1721871039312,-537.42862791,0.00013698,2]
[333106460,1721871039322,-505.55424057,0.00013698,2]
[333106462,1721871039331,-500.0,0.00013698,2]
[333106464,1721871039340,-500.0,0.00013698,2]
[333106466,1721871039350,-1664.1,0.00013698,2]
[333106468,1721871039360,-500.0,0.00013698,2]
[333106470,1721871039369,-500.0,0.00013698,2]
[333106472,1721871039379,-500.0,0.00013698,2]
[333106474,1721871039388,-500.0,0.00013698,2]
[333106476,1721871039398,-500.0,0.00013698,2]
[333106478,1721871039407,-500.0,0.00013698,2]
[333106480,1721871039417,-500.0,0.00013698,2]
[333106482,1721871039427,-500.0,0.00013698,2]
[333106484,1721871039436,-500.0,0.00013698,2]
[333106486,1721871039446,-500.0,0.00013698,2]
[333106488,1721871039456,-500.0,0.00013698,2]
[333106490,1721871039467,-627.0,0.00013698,2]
[333106493,1721871039481,-627.0,0.00013698,2]
[333106495,1721871039490,-627.0,0.00013698,2]
[333106497,1721871039500,-627.0,0.00013698,2]
[333106499,1721871039510,-627.0,0.00013698,2]
[333106501,1721871039519,-627.0,0.00013698,2]
[333106503,1721871039532,-627.0,0.00013698,2]
[333106522,1721871039711,-627.0,0.00013698,2]
[333106525,1721871039725,-627.0,0.00013698,2]
[333106527,1721871039735,-627.0,0.00013698,2]
[333106529,1721871039745,-627.0,0.00013698,2]
[333106531,1721871039755,-627.0,0.00013698,2]
[333106533,1721871039765,-627.0,0.00013698,2]
[333106535,1721871039774,-627.0,0.00013698,2]
[333106537,1721871039783,-627.0,0.00013698,2]
[333106539,1721871039794,-627.0,0.00013698,2]
[333106541,1721871039803,-627.0,0.00013698,2]
[333106543,1721871039812,-627.0,0.00013698,2]
[333106545,1721871039822,-627.0,0.00013698,2]
[333106547,1721871039832,-627.0,0.00013698,2]
[333106549,1721871039842,-627.0,0.00013698,2]
[333106551,1721871039852,-627.0,0.00013698,2]
[333106553,1721871039862,-627.0,0.00013698,2]
[333106555,1721871039871,-627.14,0.00013698,2]
[333106557,1721871039881,-500.0,0.00013698,2]
[333106559,1721871039890,-500.0,0.00013698,2]
[333106561,1721871039900,-449.45052723,0.00013698,2]
[333106563,1721871039910,-790.75,0.00013698,2]
[333106565,1721871039919,-500.0,0.00013698,2]
[333106567,1721871039929,-596.79,0.00013698,2]
[333106570,1721871039938,-500.0,0.00013698,2]
[333106572,1721871039948,-500.0,0.00013698,2]
[333106574,1721871039958,-500.0,0.00013698,2]
[333106576,1721871039968,-453.52627597,0.00013698,2]
[333106578,1721871039985,-500.0,0.00013698,2]
[333106580,1721871039994,-500.0,0.00013698,2]
[333106582,1721871040003,-500.0,0.00013698,2]
[333106584,1721871040013,-500.0,0.00013698,2]
[333106586,1721871040023,-500.0,0.00013698,2]
[333106588,1721871040032,-504.60222625,0.00013698,2]
[333106590,1721871040041,-500.0,0.00013698,2]
[333106592,1721871040051,-500.0,0.00013698,2]
[333106594,1721871040060,-500.0,0.00013698,2]
[333106596,1721871040069,-1882.56,0.00013698,2]
[333106598,1721871040078,-500.0,0.00013698,2]
[333106600,1721871040088,-1778.67,0.00013698,2]
[333106602,1721871040097,-500.0,0.00013698,2]
[333106604,1721871040107,-500.0,0.00013698,2]
[333106606,1721871040117,-500.0,0.00013698,2]
[333106608,1721871040126,-2018.77,0.00013698,2]
[333106610,1721871040136,-500.0,0.00013698,2]
[333106612,1721871040146,-500.0,0.00013698,2]
[333106614,1721871040159,-500.0,0.00013698,2]
[333106616,1721871040168,-500.0,0.00013698,2]
[333106618,1721871040178,-1018.74,0.00013698,2]
[333106620,1721871040187,-500.0,0.00013698,2]
[333106622,1721871040197,-3232.88,0.00013698,2]
[333106625,1721871040206,-500.0,0.00013698,2]
[333106627,1721871040216,-500.0,0.00013698,2]
[333106629,1721871040230,-500.0,0.00013698,2]
[333106631,1721871040240,-500.0,0.00013698,2]
[333106634,1721871040250,-594.58,0.00013698,2]
[333106636,1721871040261,-500.0,0.00013698,2]
[333106638,1721871040271,-500.0,0.00013698,2]
[333106640,1721871040281,-512.73288038,0.00013698,2]
[333106642,1721871040292,-500.0,0.00013698,2]
[333106644,1721871040302,-500.0,0.00013698,2]
[333106646,1721871040312,-500.0,0.00013698,2]
[333106649,1721871040324,-500.0,0.00013698,2]
[333106651,1721871040336,-1600.35,0.00013698,2]
[333106653,1721871040346,-500.0,0.00013698,2]
[333106655,1721871040356,-991.27,0.00013698,2]
[333106659,1721871040366,-500.0,0.00013698,2]
[333106661,1721871040377,-535.78,0.00013698,2]
[333106663,1721871040387,-500.0,0.00013698,2]
[333106665,1721871040396,-500.0,0.00013698,2]
[333106667,1721871040407,-500.0,0.00013698,2]
[333106669,1721871040416,-500.0,0.00013698,2]
[333106671,1721871040427,-500.0,0.00013698,2]
[333106674,1721871040439,-500.0,0.00013698,2]
[333106676,1721871040449,-500.0,0.00013698,2]
[333106678,1721871040460,-500.0,0.00013698,2]
[333106680,1721871040476,-500.0,0.00013698,2]
[333106682,1721871040485,-500.0,0.00013698,2]
[333106684,1721871040495,-500.0,0.00013698,2]
[333106686,1721871040504,-223.57,0.00013698,2]
[333106688,1721871040513,-500.0,0.00013698,2]
[333106690,1721871040522,-500.0,0.00013698,2]
[333106692,1721871040531,-500.0,0.00013698,2]
[333106694,1721871040543,-610.42,0.00013698,2]
[333106696,1721871040553,-500.0,0.00013698,2]
[333106698,1721871040564,-1261.98,0.00013698,2]
[333106700,1721871040575,-500.0,0.00013698,2]
[333106702,1721871040584,-1545.6,0.00013698,2]
[333106704,1721871040593,-500.0,0.00013698,2]
[333106706,1721871040603,-500.0,0.00013698,2]
[333106709,1721871040615,-500.0,0.00013698,2]
[333106711,1721871040624,-947.77,0.00013698,2]
[333106713,1721871040635,-500.0,0.00013698,2]
[333106715,1721871040646,-1424.52,0.00013698,2]
[333106717,1721871040656,-500.0,0.00013698,2]
[333106719,1721871040666,-488.59552143,0.00013698,2]
[333106721,1721871040677,-500.0,0.00013698,2]
[333106723,1721871040686,-716.66,0.00013698,2]
[333106726,1721871040698,-1520.48,0.00013698,2]
[333106728,1721871040708,-600.95,0.00013698,2]
[333106730,1721871040718,-500.0,0.00013698,2]
[333106732,1721871040733,-500.0,0.00013698,2]
[333106734,1721871040743,-500.0,0.00013698,2]
[333106737,1721871040757,-500.0,0.00013698,2]
[333106738,1721871040767,-500.0,0.00013698,2]
[333106740,1721871040778,-500.0,0.00013698,2]
[333106743,1721871040789,-500.0,0.00013698,2]
[333106745,1721871040800,-500.0,0.00013698,2]
[333106747,1721871040810,-500.0,0.00013698,2]
[333106748,1721871040820,-500.0,0.00013698,2]
[333106749,1721871040829,-500.0,0.00013698,2]
[333106750,1721871040839,-692.85,0.00013698,2]
[333106751,1721871040849,-500.0,0.00013698,2]
[333106752,1721871040858,-500.0,0.00013698,2]
[333106753,1721871040868,-500.0,0.00013698,2]
[333106754,1721871040877,-500.0,0.00013698,2]
[333106755,1721871040886,-500.0,0.00013698,2]
[333106756,1721871040895,-500.0,0.00013698,2]
[333106757,1721871040905,-500.0,0.00013698,2]
[333106758,1721871040915,-1110.88,0.00013698,2]
[333106759,1721871040926,-457.32497753,0.00013698,2]
[333106760,1721871040935,-612.76,0.00013698,2]
[333106761,1721871040945,-500.0,0.00013698,2]
[333106762,1721871040955,-1254.88,0.00013698,2]
[333106763,1721871040965,-1122.26,0.00013698,2]
[333106764,1721871040980,-500.0,0.00013698,2]
[333106765,1721871040991,-500.0,0.00013698,2]
[333106766,1721871041001,-725.94,0.00013698,2]
[333106767,1721871041013,-500.0,0.00013698,2]
[333106768,1721871041023,-507.31093237,0.00013698,2]
[333106769,1721871041032,-1550.34,0.00013698,2]
[333106770,1721871041042,-500.0,0.00013698,2]
[333106771,1721871041051,-500.0,0.00013698,2]
[333106772,1721871041060,-292.51694039,0.00013698,2]
[333106773,1721871041070,-500.0,0.00013698,2]
[333106774,1721871041079,-513.08,0.00013698,2]
[333106775,1721871041089,-1084.01,0.00013698,2]
[333106776,1721871041099,-500.0,0.00013698,2]
[333106777,1721871041108,-500.0,0.00013698,2]
[333106778,1721871041117,-1517.05,0.00013698,2]
[333106779,1721871041128,-500.0,0.00013698,2]
[333106780,1721871041142,-500.0,0.00013698,2]
[333106781,1721871041152,-500.0,0.00013698,2]
[333106782,1721871041163,-500.0,0.00013698,2]
[333106784,1721871041174,-500.0,0.00013698,2]
[333106786,1721871041184,-282.22,0.00013698,2]
[333106788,1721871041194,-500.0,0.00013698,2]
[333106790,1721871041206,-500.0,0.00013698,2]
[333106792,1721871041217,-1839.57,0.00013698,2]
[333106793,1721871041235,-500.0,0.00013698,2]
[333106794,1721871041245,-500.0,0.00013698,2]
[333106795,1721871041256,-780.13,0.00013698,2]
[333106798,1721871041267,-500.0,0.00013698,2]
[333106800,1721871041278,-1251.53,0.00013698,2]
[333106802,1721871041289,-500.0,0.00013698,2]
[333106804,1721871041300,-3997.58,0.00013698,2]
[333106806,1721871041310,-500.0,0.00013698,2]
[333106808,1721871041322,-6225.23,0.00013698,2]
[333106810,1721871041332,-500.0,0.00013698,2]
[333106812,1721871041342,-500.0,0.00013698,2]
[333106815,1721871041355,-500.0,0.00013698,2]
[333106817,1721871041367,-500.0,0.00013698,2]
[333106819,1721871041378,-500.0,0.00013698,2]
[333106821,1721871041387,-500.0,0.00013698,2]
[333106823,1721871041397,-500.0,0.00013698,2]
[333106825,1721871041406,-500.0,0.00013698,2]
[333106826,1721871041416,-500.0,0.00013698,2]
[333106827,1721871041426,-500.0,0.00013698,2]
[333106828,1721871041437,-500.0,0.00013698,2]
[333106829,1721871041446,-500.0,0.00013698,2]
[333106830,1721871041458,-500.0,0.00013698,2]
[333106831,1721871041468,-225.91,0.00013698,2]
[333106832,1721871041480,-154.11730117,0.00013698,2]
[333106833,1721871041489,-500.0,0.00013698,2]
[333106834,1721871041498,-500.0,0.00013698,2]
[333106835,1721871041507,-2181.31,0.00013698,2]
[333106836,1721871041516,-500.0,0.00013698,2]
[333106837,1721871041526,-500.0,0.00013698,2]
[333106838,1721871041536,-500.0,0.00013698,2]
[333106839,1721871041546,-500.0,0.00013698,2]
[333106840,1721871041556,-500.0,0.00013698,2]
[333106841,1721871041566,-500.0,0.00013698,2]
[333106842,1721871041577,-826.79,0.00013698,2]
[333106843,1721871041588,-655.47,0.00013698,2]
[333106844,1721871041599,-500.0,0.00013698,2]
[333106845,1721871041609,-500.0,0.00013698,2]
[333106846,1721871041618,-500.0,0.00013698,2]
[333106847,1721871041627,-991.45,0.00013698,2]
[333106848,1721871041637,-1037.75,0.00013698,2]
[333106849,1721871041646,-589.63,0.00013698,2]
[333106850,1721871041656,-500.0,0.00013698,2]
[333106851,1721871041666,-500.0,0.00013698,2]
[333106852,1721871041677,-500.0,0.00013698,2]
[333106853,1721871041687,-1814.14,0.00013698,2]
[333106854,1721871041697,-4300.27,0.00013698,2]
[333106855,1721871041708,-500.0,0.00013698,2]
[333106856,1721871041719,-500.0,0.00013698,2]
[333106857,1721871041732,-1318.66,0.00013698,2]
[333106858,1721871041743,-645.13695881,0.00013698,2]
[333106859,1721871041752,-809.85,0.00013698,2]
[333106860,1721871041762,-1035.17,0.00013698,2]
[333106861,1721871041772,-1947.75,0.00013698,2]
[333106862,1721871041781,-1885.19,0.00013698,2]
[333106863,1721871041791,-500.0,0.00013698,2]
[333106864,1721871041800,-500.0,0.00013698,2]
[333106865,1721871041809,-500.0,0.00013698,2]
[333106866,1721871041818,-500.0,0.00013698,2]
[333106867,1721871041827,-500.0,0.00013698,2]
[333106868,1721871041837,-500.0,0.00013698,2]
[333106869,1721871041847,-500.0,0.00013698,2]
[333106870,1721871041856,-500.0,0.00013698,2]
[333106871,1721871041865,-500.0,0.00013698,2]
[333106872,1721871041874,-616.55,0.00013698,2]
[333106873,1721871041883,-500.0,0.00013698,2]
[333106874,1721871041892,-500.0,0.00013698,2]
[333106875,1721871041902,-12109.36413376,0.00013698,2]
[333106876,1721871041911,-1493.84,0.00013698,2]
[333106877,1721871041920,-603.77,0.00013698,2]
[333106878,1721871041929,-1106.8,0.00013698,2]
[333106880,1721871041938,-500.0,0.00013698,2]
[333106882,1721871041948,-500.0,0.00013698,2]
[333106884,1721871041957,-8127.92,0.00013698,2]
[333106886,1721871041968,-247.20075316,0.00013698,2]
[333106888,1721871041980,-510.73957969,0.00013698,2]
[333106890,1721871041989,-1337.77,0.00013698,2]
[333106892,1721871041999,-866.11,0.00013698,2]
[333106894,1721871042009,-8405.95,0.00013698,2]
[333106896,1721871042018,-500.0,0.00013698,2]
[333106898,1721871042027,-500.0,0.00013698,2]
[333106900,1721871042039,-500.0,0.00013698,2]
[333106902,1721871042048,-628.65,0.00013698,2]
[333106904,1721871042057,-500.0,0.00013698,2]
[333106906,1721871042066,-500.0,0.00013698,2]
[333106908,1721871042075,-1834.58,0.00013698,2]
[333106910,1721871042085,-500.0,0.00013698,2]
[333106913,1721871042095,-500.0,0.00013698,2]
[333106915,1721871042104,-500.55675731,0.00013698,2]
[333106917,1721871042114,-500.0,0.00013698,2]
[333106919,1721871042123,-500.0,0.00013698,2]
[333106921,1721871042134,-500.0,0.00013698,2]
[333106923,1721871042144,-3776.9,0.00013698,2]
[333106924,1721871042156,-3919.17,0.00013698,2]
[333106926,1721871042166,-500.0,0.00013698,2]
[333106928,1721871042175,-425.57351266,0.00013698,2]
[333106930,1721871042184,-1180.57,0.00013698,2]
[333106932,1721871042194,-500.0,0.00013698,2]
[333106934,1721871042205,-623.96,0.00013698,2]
[333106936,1721871042214,-500.0,0.00013698,2]
[333106938,1721871042227,-500.0,0.00013698,2]
[333106941,1721871042238,-500.0,0.00013698,2]
[333106943,1721871042248,-500.0,0.00013698,2]
[333106945,1721871042257,-178.99459703,0.00013698,2]
[333106947,1721871042267,-500.0,0.00013698,2]
[333106949,1721871042280,-1469.63,0.00013698,2]
[333106951,1721871042289,-500.0,0.00013698,2]
[333106952,1721871042298,-500.0,0.00013698,2]
[333106954,1721871042307,-4396.49,0.00013698,2]
[333106956,1721871042316,-4396.49,0.00013698,2]
[333106958,1721871042325,-781.99,0.00013698,2]
[333106960,1721871042334,-4396.49,0.00013698,2]
[333106961,1721871042343,-4396.49,0.00013698,2]
[333106962,1721871042352,-4396.49,0.00013698,2]
[333106963,1721871042362,-4396.49,0.00013698,2]
[333106964,1721871042371,-4396.49,0.00013698,2]
[333106965,1721871042380,-4396.49,0.00013698,2]
[333106967,1721871042390,-4396.49,0.00013698,2]
[333106969,1721871042400,-4396.49,0.00013698,2]
[333106971,1721871042409,-4396.49,0.00013698,2]
[333106973,1721871042419,-507.0263962,0.00013698,2]
[333106975,1721871042428,-500.0,0.00013698,2]
[333106977,1721871042438,-565.13,0.00013698,2]
[333106979,1721871042448,-500.0,0.00013698,2]
[333106981,1721871042458,-500.0,0.00013698,2]
[333106983,1721871042469,-501.22068787,0.00013698,2]
[333106985,1721871042485,-507.51728735,0.00013698,2]
[333106986,1721871042495,-500.0,0.00013698,2]
[333106988,1721871042504,-500.0,0.00013698,2]
[333106990,1721871042514,-636.59,0.00013698,2]
[333106992,1721871042524,-500.0,0.00013698,2]
[333106994,1721871042533,-385.48735477,0.00013698,2]
[333106996,1721871042543,-500.0,0.00013698,2]
[333106998,1721871042552,-500.0,0.00013698,2]
[333107000,1721871042561,-502.71235514,0.00013698,2]
[333107002,1721871042570,-500.0,0.00013698,2]
[333107004,1721871042579,-500.0,0.00013698,2]
[333107005,1721871042588,-500.0,0.00013698,2]
[333107007,1721871042598,-2372.48,0.00013698,2]
[333107010,1721871042608,-2210.26,0.00013698,2]
[333107012,1721871042619,-500.0,0.00013698,2]
[333107014,1721871042630,-500.0,0.00013698,2]
[333107016,1721871042640,-500.0,0.00013698,2]
[333107018,1721871042649,-500.0,0.00013698,2]
[333107019,1721871042659,-1752.67,0.00013698,2]
[333107021,1721871042668,-500.0,0.00013698,2]
[333107024,1721871042679,-800.81,0.00013698,2]
[333107026,1721871042690,-2618.96,0.00013698,2]
[333107028,1721871042700,-500.0,0.00013698,2]
[333107030,1721871042710,-1604.1,0.00013698,2]
[333107032,1721871042719,-500.0,0.00013698,2]
[333107034,1721871042739,-500.0,0.00013698,2]
[333107036,1721871042749,-1478.49,0.00013698,2]
[333107037,1721871042760,-500.0,0.00013698,2]
[333107039,1721871042771,-2167.49,0.00013698,2]
[333107041,1721871042783,-4049.96,0.00013698,2]
[333107044,1721871042794,-10162.15,0.00013698,2]
[333107046,1721871042805,-500.0,0.00013698,2]
[333107048,1721871042815,-500.0,0.00013698,2]
[333107050,1721871042824,-500.0,0.00013698,2]
[333107052,1721871042834,-500.0,0.00013698,2]
[333107054,1721871042844,-1444.66,0.00013698,2]
[333107056,1721871042853,-500.0,0.00013698,2]
[333107057,1721871042864,-500.0,0.00013698,2]
[333107059,1721871042875,-500.0,0.00013698,2]
[333107062,1721871042887,-500.0,0.00013698,2]
[333107064,1721871042898,-682.06,0.00013698,2]
[333107066,1721871042908,-1720.49,0.00013698,2]
[333107067,1721871042917,-500.0,0.00013698,2]
[333107068,1721871042927,-500.0,0.00013698,2]
[333107070,1721871042937,-273.31051623,0.00013698,2]
[333107072,1721871042947,-500.0,0.00013698,2]
[333107073,1721871042956,-500.0,0.00013698,2]
[333107075,1721871042966,-500.0,0.00013698,2]
[333107077,1721871042975,-500.0,0.00013698,2]
[333107079,1721871042990,-502.12201301,0.00013698,2]
[333107081,1721871043001,-500.0,0.00013698,2]
[333107083,1721871043011,-231.14106794,0.00013698,2]
[333107085,1721871043021,-13091.78,0.00013698,2]
[333107087,1721871043031,-546.79,0.00013698,2]
[333107088,1721871043040,-503.30857628,0.00013698,2]
[333107089,1721871043050,-500.0,0.00013698,2]
[333107091,1721871043059,-405.73138549,0.00013698,2]
[333107092,1721871043069,-914.28,0.00013698,2]
[333107093,1721871043079,-3936.55,0.00013698,2]
[333107094,1721871043091,-4772.52,0.00013698,2]
[333107095,1721871043101,-500.0,0.00013698,2]
[333107096,1721871043110,-500.0,0.00013698,2]
[333107097,1721871043120,-303.75100406,0.00013698,2]
[333107098,1721871043137,-198.6008144,0.00013698,2]
[333107099,1721871043147,-152.01002329,0.00013698,2]
[333107100,1721871043156,-500.0,0.00013698,2]
[333107101,1721871043166,-500.0,0.00013698,2]
[333107102,1721871043178,-500.0,0.00013698,2]
[333107103,1721871043189,-675.26790813,0.00013698,2]
[333107104,1721871043198,-500.0,0.00013698,2]
[333107105,1721871043207,-675.26790813,0.00013698,2]
[333107106,1721871043218,-675.26790813,0.00013698,2]
[333107108,1721871043231,-500.0,0.00013698,2]
[333107111,1721871043240,-500.0,0.00013698,2]
[333107113,1721871043249,-567.95174226,0.00013698,2]
[333107115,1721871043259,-675.26790813,0.00013698,2]
[333107117,1721871043268,-675.26790813,0.00013698,2]
[333107119,1721871043278,-500.0,0.00013698,2]
[333107121,1721871043289,-675.26790813,0.00013698,2]
[333107123,1721871043300,-411.2416408,0.00013698,2]
[333107125,1721871043311,-500.0,0.00013698,2]
[333107127,1721871043321,-675.26790813,0.00013698,2]
[333107131,1721871043330,-675.26790813,0.00013698,2]
[333107134,1721871043339,-500.43005604,0.00013698,2]
[333107137,1721871043349,-500.0,0.00013698,2]
[333107140,1721871043360,-675.26790813,0.00013698,2]
[333107142,1721871043370,-500.0,0.00013698,2]
[333107144,1721871043379,-500.0,0.00013698,2]
[333107146,1721871043390,-675.26790813,0.00013698,2]
[333107148,1721871043401,-500.0,0.00013698,2]
[333107152,1721871043413,-500.0,0.00013698,2]
[333107155,1721871043423,-675.26790813,0.00013698,2]
[333107159,1721871043434,-607.41013991,0.00013698,2]
[333107162,1721871043445,-500.0,0.00013698,2]
[333107165,1721871043455,-500.0,0.00013698,2]
[333107167,1721871043464,-500.0,0.00013698,2]
[333107169,1721871043474,-500.0,0.00013698,2]
[333107171,1721871043489,-500.0,0.00013698,2]
[333107173,1721871043499,-500.0,0.00013698,2]
[333107175,1721871043509,-500.0,0.00013698,2]
[333107177,1721871043519,-500.0,0.00013698,2]
[333107179,1721871043528,-500.0,0.00013698,2]
[333107181,1721871043538,-500.0,0.00013698,2]
[333107183,1721871043548,-500.0,0.00013698,2]
[333107185,1721871043559,-500.0,0.00013698,2]
[333107187,1721871043569,-500.0,0.00013698,2]
[333107189,1721871043578,-500.0,0.00013698,2]
[333107191,1721871043588,-500.0,0.00013698,2]
[333107193,1721871043597,-500.0,0.00013698,2]
[333107195,1721871043607,-500.0,0.00013698,2]
[333107197,1721871043616,-1581.923095,0.00013699,2]
[333107199,1721871043626,-5464.4026296,0.00013699,2]
[333107201,1721871043636,-3000.0,0.00013699,2]
[333107204,1721871043646,-150.112233,0.000137,2]
[333107206,1721871043655,-150.112233,0.000137,2]
[333107208,1721871043665,-150.112233,0.000137,2]
[333107210,1721871043675,-150.112233,0.000138,2]
[333107212,1721871043684,-150.112233,0.000138,2]
[333107214,1721871043694,-1928.96938762,0.00013862,2]
[333107216,1721871043703,-200.0,0.00013872,2]
[333107218,1721871043714,-5372.57598953,0.0001388,2]
[333107234,1721871043725,-150.112233,0.000139,2]
[333107237,1721871043878,-150.112233,0.000139,2]
[333107239,1721871043888,-150.112233,0.000139,2]
[333107242,1721871043899,-150.112233,0.000139,2]
[333107245,1721871043909,-10193.85399825,0.000139,2]
[333107248,1721871043919,-20182.5003528,0.00013951,2]
[333107252,1721871043932,-151.0,0.00013952,2]
[333107254,1721871043942,-437.596397,0.00013952,2]
[333107256,1721871043952,-437.596397,0.00013952,2]
[333107258,1721871043963,-240.507175,0.00013957,2]
[333107260,1721871043974,-10091.2501764,0.00013961,2]
[333107262,1721871043990,-151.0,0.00013961,2]
[333107264,1721871043998,-4396.49,0.00013961,2]
[333107266,1721871044008,-4396.49,0.00013961,2]
[333107268,1721871044017,-4396.49,0.00013961,2]
[333107270,1721871044026,-4396.49,0.00013961,2]
[333107272,1721871044035,-4396.49,0.00013961,2]
[333107274,1721871044044,-151.0,0.00013961,2]
[333107276,1721871044054,-449.582763,0.00013961,2]
[333107278,1721871044063,-449.582763,0.00013961,2]
[333107281,1721871044073,-437.596397,0.00013961,2]
[333107285,1721871044083,-437.596397,0.00013961,2]
[333107288,1721871044093,-151.0,0.00013962,2]
[333107290,1721871044102,-1336.113117,0.00013962,2]